Cogmind - Beta 12 *** ADVENTURER MODE // 2024.02.13 @ 13:45:22 Player: nacho Result: Destroyed by S-27 Virus with Autogun Performance ------------- Evolutions (3) 1500 Regions Visited (5) 1000 Robots Destroyed (38) 190 Value Destroyed (1024) 1024 Prototype IDs (1) 20 Alien Tech Used (0) 0 Bonus (22) 22 TOTAL SCORE: 3756 Bonus ------- High Alert Combat Kills 22 Cogmind --------- Core Integrity 0/700 Matter 214/300 Energy 75/100 System Corruption 0% Temperature Cool (0) Movement Core (50) Location -7/Factory Parts ------- > --- POWER (2) -------- (None) > --- PROPULSION (4) --- (None) > --- UTILITY (5) ------ Targeting Computer > --- WEAPON (2) ------- Particle Gun > --- INVENTORY (5) ---- Reaction Control System Peak State ------------ > --- POWER ------------ (None) > --- PROPULSION ------- Armored Huge Wheel Armored Huge Wheel > --- UTILITY ---------- Compact Matter Pod > --- WEAPON ----------- Mini Grenade Launcher Mini Grenade Launcher > --- INVENTORY -------- Armored Huge Wheel Advanced Weight Redist. System [Rating: 24] Favorites ----------- Power Improved Ion Engine Engine Improved Ion Engine Power Core Light Nuclear Core Propulsion Flight Unit Treads Light Treads Leg Aluminum Leg Wheel Armored Huge Wheel Flight Unit Flight Unit Utility Targeting Computer Device Seismic Detector Storage Compact Matter Pod Processor Targeting Computer Weapon Light Assault Rifle Energy Gun Small Laser Energy Cannon Advanced Beam Cannon Ballistic Gun Light Assault Rifle Ballistic Cannon Flak Cannon Launcher Mini Grenade Launcher Special Weapon Remote Datajack Build | -11 -10 -9 -9 -8 -7 ------- Run | Jun Mat Mat Min Mat Fac Slots Evolved 6 | . . 2 . 2 2 Power 1 | . . . . . 1 Propulsion 2 | . . 2 . . . Utility 3 | . . . . 2 1 Weapon . | . . . . . . Parts Attached 50 | 4 9 7 . 17 13 Power 5 | 1 2 1 . 1 . Engine 4 | 1 2 1 . . . Core 1 | . . . . 1 . Reactor . | . . . . . . Propulsion 18 | 2 3 3 . 6 4 Treads 3 | . . . . 1 2 Leg 5 | 2 . . . 1 2 Wheel 3 | . . . . 3 . Hover . | . . . . . . Flight 7 | . 3 3 . 1 . Utility 13 | 1 1 2 . 4 5 Device 6 | . . 2 . 2 2 Storage 4 | 1 1 . . 2 . Processor 3 | . . . . . 3 Hackware . | . . . . . . Protection . | . . . . . . Artifact . | . . . . . . Weapon 14 | . 3 1 . 6 4 Energy Gun 5 | . 1 1 . 2 1 Energy Cannon 1 | . . . . 1 . Ballistic Gun 3 | . 2 . . 1 . Ballistic Cannon 1 | . . . . . 1 Launcher 3 | . . . . 2 1 Special Weapon 1 | . . . . . 1 Impact Weapon . | . . . . . . Slashing Weapon . | . . . . . . Piercing Weapon . | . . . . . . Special Melee Weapon . | . . . . . . Unidentified Prototypes 1 | . . . . 1 . Parts Lost 28 | . . . . 18 10 Power 2 | . . . . 2 . Propulsion 12 | . . . . 7 5 Utility 8 | . . . . 4 4 Weapon 6 | . . . . 5 1 Highest Loss Streak 9 | . . . . 9 7 To Critical Strikes . | . . . . . . Average Slot Usage (%) 65 | . 74 75 100 63 54 Engine 4 | . 14 11 11 4 . Treads 7 | . . . . 2 17 Leg 2 | . 13 . . 2 . Wheel 2 | . . . . 5 . Flight 12 | . 14 38 44 12 . Device 10 | . . 4 22 13 10 Storage 4 | . 16 . . 6 . Processor 4 | . . . . . 12 Energy Gun 3 | . 4 11 11 4 . Ballistic Gun 6 | . 9 11 11 6 2 Ballistic Cannon 1 | . . . . . 3 Launcher 1 | . . . . 3 . Special Weapon 1 | . . . . . 5 Naked Turns . | . . . . . . Heaviest Build 22 | 10 16 11 11 15 22 Greatest Support 60 | 20 20 16 16 56 60 Greatest Overweight (x) 3 | . 1 . . 1 3 Average Overweight (x) . | . . . . . . Largest Inventory Capacity 8 | 8 8 5 5 5 5 Average Capacity 5 | 7 7 5 5 5 5 Most Carried 5 | 2 2 5 5 5 5 Average Carried 1 | . . 1 3 1 1 Final Capacity 8 | 8 5 5 5 5 5 Final Carried 4 | 1 1 2 4 3 1 Class Distribution -------------------- 62% | Mutant 18% | Scavenger-Mutant 18% | Scavenger-Sprinter Dominant Class ---------------- Scavenger-Mutant | -10/Materials Scavenger-Sprinter | -9/Materials Scavenger-Sprinter | -9/Mines Mutant | -8/Materials Mutant | -7/Factory Resources | -11 -10 -9 -9 -8 -7 ----------- Run | Jun Mat Mat Min Mat Fac Matter Collected 794 | 221 84 115 20 191 163 Remotely . | . . . . . . Salvage Created 927 | . 139 118 . 647 23 Parts 70 | . 16 13 . 39 2 Haulers Intercepted 2 | . . . . 2 . Recyclers Shooed . | . . . . . . Parts Field Recycled . | . . . . . . Retrieved Matter . | . . . . . . Parts Self-Destructed . | . . . . . . Prevented . | . . . . . . Kills | -11 -10 -9 -9 -8 -7 ------- Run | Jun Mat Mat Min Mat Fac Combat Hostiles Destroyed 26 | . 5 4 . 16 1 Guns 13 | . 5 4 . 4 . Cannons 1 | . . . . . 1 AOE 12 | . . . . 12 . Classes Destroyed 9 | . 2 2 . 5 . Worker 5 | . . 1 . 4 . Builder 2 | . . . . 2 . Tunneler 1 | . . . . 1 . Hauler 2 | . . . . 2 . Mechanic 1 | . . . . 1 . Watcher 1 | . . . . 1 . Swarmer 10 | . 3 3 . 3 1 Grunt 13 | . 2 . . 11 . Sentry 3 | . . 1 . 2 . Best Kill Streak 13 | . 4 4 . 13 1 Combat Bots Only 8 | . 4 3 . 8 1 Max Kills in Single Turn 4 | . 1 2 . 4 1 Gunslinging . | . . . . . . Exploded 3 | . . . . 3 . Melee . | . . . . . . Uniques/NPCs Destroyed . | . . . . . . Combat | -11 -10 -9 -9 -8 -7 -------- Run | Jun Mat Mat Min Mat Fac Damage Taken 3725 | . 113 93 . 1997 1522 Core 1201 | . 16 26 . 452 707 Absorbed by Shields . | . . . . . . Core Remaining (%) 75 | 100 93 . 93 17 . Volleys Fired 83 | . 12 12 1 46 12 Largest 2 | . 2 2 2 2 1 Hottest 76 | . 60 60 60 76 65 Shots Fired 141 | . 20 24 2 83 12 Gun 105 | . 20 24 2 58 1 Cannon 8 | . . . . . 8 Launcher 25 | . . . . 25 . Special 3 | . . . . . 3 Kinetic 64 | . 12 12 1 31 8 Thermal 39 | . . 12 1 25 1 Explosive 25 | . . . . 25 . Electromagnetic 10 | . 8 . . 2 . Robot Hit Streak 34 | . 9 6 . 34 10 Robot Miss Streak 6 | . 2 5 . 2 6 Penetration Max . | . . . . . . Secondary Targets 3 | . 1 . . 2 . Max Gunslinging Chain 1 | . 1 . . 1 . Shots Hit Robots 103 | . 12 15 . 66 10 Core Hits 89 | . 8 7 . 64 10 Critical Kills . | . . . . . . Critical Parts Destroyed . | . . . . . . Critical Strikes 1 | . . . . 1 . Burn 1 | . . . . 1 . Melee Attacks . | . . . . . . Impact . | . . . . . . Slashing . | . . . . . . Piercing . | . . . . . . Sneak Attacks . | . . . . . . Combat Hostiles . | . . . . . . Follow-up Attacks . | . . . . . . Damage Inflicted 2772 | . 151 185 . 2241 195 Guns 942 | . 151 185 . 589 17 Cannons 178 | . . . . . 178 Explosions 1633 | . . . . 1633 . Melee . | . . . . . . Ramming 19 | . . . . 19 . Kinetic 573 | . 64 88 . 243 178 Thermal 432 | . . 97 . 318 17 Explosive 1633 | . . . . 1633 . Electromagnetic 115 | . 87 . . 28 . Impact . | . . . . . . Slashing . | . . . . . . Piercing . | . . . . . . Highest Corruption 8 | . . . . 8 . Average Corruption 4 | . . . . 4 . Corruption Purged . | . . . . . . Corruption Blocked . | . . . . . . Effects 3 | . . . . 3 . Message Errors 1 | . . . . 1 . Data Loss (major) 1 | . . . . 1 . Alerts 1 | . . . . 1 . Overload Shots . | . . . . . . Overflow Damage 54 | . . . . 54 . Projectiles . | . . . . . . Explosions 54 | . . . . 54 . Melee . | . . . . . . Knockbacks 11 | . . . . 1 10 Impact 1 | . . . . 1 . Kinetic 10 | . . . . . 10 Secondary . | . . . . . . Self-Inflicted Damage 124 | . . . . 124 . Shots 4 | . . . . 4 . Rammed 11 | . . . . 11 . Targets Rammed 11 | . . . . 11 . Kicked . | . . . . . . Crushed . | . . . . . . Highest Temperature 102 | . 24 79 8 102 15 Average Temperature 27 | . 12 32 7 31 10 Received Heat Transfer 1503 | . 66 18 . 1044 375 Siege Activations . | . . . . . . Robots Corrupted . | . . . . . . Combat Hostiles . | . . . . . . Parts Fried . | . . . . . . Impact Corruptions . | . . . . . . Robots Melted . | . . . . . . Combat Hostiles . | . . . . . . Parts Melted 1 | . . . . 1 . Heat Transferred 1150 | . . 225 . 888 37 Parts Sabotaged . | . . . . . . Parts Stolen . | . . . . . . Parts Stripped . | . . . . . . Power Chain Reactions . | . . . . . . Missiles Intercepted . | . . . . . . Alert | -11 -10 -9 -9 -8 -7 ------- Run | Jun Mat Mat Min Mat Fac Peak Influence 622 | . 157 194 63 622 199 Initial 183 | . . 56 63 20 183 Average 149 | . 83 132 63 208 163 Maximum Alert Level 2 | . . . . 2 . Low Security (%) 86 | 100 100 100 100 60 100 Level 1 4 | . . . . 14 . Level 2 8 | . . . . 25 . Level 3 . | . . . . . . Level 4 . | . . . . . . Level 5 . | . . . . . . High Security . | . . . . . . Max Security . | . . . . . . Squads Dispatched 8 | . 1 . . 5 2 Investigation 3 | . 1 . . 2 . Extermination . | . . . . . . Reinforcement . | . . . . . . Assault 1 | . . . . 1 . Garrison 4 | . . . . 2 2 Intercept . | . . . . . . Searches Triggered . | . . . . . . Construction Impeded . | . . . . . . Haulers Reinforced . | . . . . . . Active Scanning Responses . | . . . . . . Cargo Convoy Interrupts . | . . . . . . Stealth | -11 -10 -9 -9 -8 -7 --------- Run | Jun Mat Mat Min Mat Fac Distress Signals 4 | . 2 . . 1 1 Communications Jammed . | . . . . . . Distress Signals . | . . . . . . Times Spotted 53 | . 10 4 . 27 12 Peak Tracking Total 9 | . 5 3 . 9 8 Tactical Retreats 3 | . . . . 1 2 Traps | -11 -10 -9 -9 -8 -7 ------- Run | Jun Mat Mat Min Mat Fac Traps Triggered 1 | . . . . 1 . Indirectly . | . . . . . . Trap Hack Attempts . | . . . . . . Triggered . | . . . . . . Disarmed . | . . . . . . Reprogrammed . | . . . . . . Reused . | . . . . . . Traps Extracted . | . . . . . . Installed . | . . . . . . Triggered . | . . . . . . Machines | -11 -10 -9 -9 -8 -7 ---------- Run | Jun Mat Mat Min Mat Fac Machines Disabled 3 | . . . . 3 . Max in Single Turn 2 | . . . . 2 . Garrison Access 1 | . . . . 1 . Machines Repaired . | . . . . . . Machines Sabotaged . | . . . . . . Overloaded Fab Kills . | . . . . . . Hacking | -11 -10 -9 -9 -8 -7 --------- Run | Jun Mat Mat Min Mat Fac Machines Accessed 6 | . 1 2 1 1 1 Terminals 3 | . 1 1 . . 1 Fabricators . | . . . . . . Repair Stations . | . . . . . . Recycling Units 1 | . . . . 1 . Scanalyzers 1 | . . 1 . . . Garrison Access . | . . . . . . Total Hacks 17 | . 4 5 1 3 4 Successful 14 | . 3 4 1 2 4 Failed 3 | . 1 1 . 1 . Catastrophic . | . . . . . . Database Lockouts . | . . . . . . Manual . | . . . . . . Terminals 11 | . 4 3 . . 4 Fabricators . | . . . . . . Repair Stations . | . . . . . . Recycling Units 3 | . . . . 3 . Scanalyzers 2 | . . 2 . . . Garrison Access . | . . . . . . Terminal Hacks 10 | . 3 2 1 . 4 Record 6 | . 1 2 . . 3 Robot Analysis 1 | . 1 . . . . Open Door 1 | . . . 1 . . Locate Traps 1 | . 1 . . . . Maintenance Status 1 | . . . . . 1 Fabricator Hacks . | . . . . . . Repair Station Hacks . | . . . . . . Recycling Unit Hacks 2 | . . . . 2 . Recycle Component 1 | . . . . 1 . Retrieve Components 1 | . . . . 1 . Scanalyzer 2 | . . 2 . . . Insert Component 1 | . . 1 . . . Analyze 1 | . . 1 . . . Garrison Access Hacks . | . . . . . . Unauthorized Hacks . | . . . . . . Terminals . | . . . . . . Fabricators . | . . . . . . Repair Stations . | . . . . . . Recycling Units . | . . . . . . Scanalyzers . | . . . . . . Garrison Access . | . . . . . . Data Cores Recovered . | . . . . . . Used . | . . . . . . Hacking Detections 4 | . 1 1 . 1 1 Full Trace Events 3 | . 1 1 . 1 . Feedback Events . | . . . . . . Feedback Blocked . | . . . . . . Robot Schematics Acquired . | . . . . . . Robots Built . | . . . . . . Authchips . | . . . . . . Time . | . . . . . . Total Robot Build Rating . | . . . . . . Part Schematics Acquired 1 | . . 1 . . . Parts Built . | . . . . . . Authchips . | . . . . . . Time . | . . . . . . Total Part Build Rating . | . . . . . . Parts Repaired . | . . . . . . Time . | . . . . . . Parts Recycled 1 | . . . . 1 . Recycled Matter . | . . . . . . Retrieved Matter . | . . . . . . Retrieved Components 1 | . . . . 1 . Parts Scanalyzed 1 | . . 1 . . . Part Schematics Acquired 1 | . . 1 . . . Parts Damaged . | . . . . . . Bothacking | -11 -10 -9 -9 -8 -7 ------------ Run | Jun Mat Mat Min Mat Fac Used RIF Installer . | . . . . . . Robots Hacked 2 | . . . . . 2 Non-combat . | . . . . . . Combat 2 | . . . . . 2 Robot Hacks Applied 3 | . . . . . 3 parse_system 3 | . . . . . 3 Relay Couplers Released 3 | . . . . 3 . Machine Destruction 3 | . . . . 3 . Fabnet Peak Effective % . | . . . . . . Robots Rewired . | . . . . . . Allies Hacked . | . . . . . . Hacks Repelled . | . . . . . . Allies | -11 -10 -9 -9 -8 -7 -------- Run | Jun Mat Mat Min Mat Fac Total Allies . | . . . . . . Largest Group . | . . . . . . Highest-Rated Group . | . . . . . . Highest-Rated Ally . | . . . . . . Total Orders . | . . . . . . Ally Attacks . | . . . . . . Total Damage . | . . . . . . Kills . | . . . . . . Allies Corrupted . | . . . . . . Allies Melted . | . . . . . . Intel | -11 -10 -9 -9 -8 -7 ------- Run | Jun Mat Mat Min Mat Fac Robot Analysis Total 1 | . 1 . . . . Derelict Logs Recovered . | . . . . . . Drone Launches . | . . . . . . Drone Recoveries . | . . . . . . Exploration | -11 -10 -9 -9 -8 -7 ------------- Run | Jun Mat Mat Min Mat Fac Turns Passed 1316 | 71 170 83 102 445 445 Spaces Moved 1015 | 55 162 89 301 190 218 Core 38 | 5 . . . 7 26 Treads 226 | . . . . 57 169 Legs 164 | 50 51 . . 40 23 Wheels 31 | . . . . 31 . Hover . | . . . . . . Flight 556 | . 111 89 301 55 . Fastest Speed 29 | 50 37 31 31 29 50 Average Speed 85 | 113 70 32 31 115 161 Slowest Speed 240 | 120 120 34 31 190 240 Overloaded Moves . | . . . . . . Propulsion Burnouts . | . . . . . . Robots Hopped 6 | . 4 2 . . . Cave-ins Triggered 1 | . . . . 1 . Exploration Rate (%) 21 | 4 31 10 59 19 6 Regions Visited 5 Branch Regions 1 Pre-discovered Areas . | . . . . . . Known Exits Taken . | . . . . . . Unknown Exits Taken 5 | 1 1 1 1 1 . Scrap Searched 1 | . . . 1 . . Spaces Dug . | . . . . . . Terrain Destroyed 151 | . . . . 151 . Melee . | . . . . . . Projectile . | . . . . . . AOE 151 | . . . . 151 . Terrain Rammed . | . . . . . . Walls Destroyed . | . . . . . . Machines Disabled . | . . . . . . Actions | -11 -10 -9 -9 -8 -7 --------- Run | Jun Mat Mat Min Mat Fac Total 1325 | 63 197 119 307 339 300 Wait 102 | . . . 2 57 43 Move 998 | 54 153 84 300 189 218 Hop 6 | . 4 2 . . . Pick Up 52 | 5 9 10 3 16 9 Fast Attach 3 | . . . . . 3 Attach 35 | 4 4 5 . 14 8 Detach 1 | . 1 . . . . Swap 13 | . 5 2 . 4 2 Drop 21 | . 9 4 1 2 5 Fire 83 | . 12 12 1 46 12 Melee . | . . . . . . Ram 11 | . . . . 11 . Kick . | . . . . . . Crush . | . . . . . . Escape Stasis . | . . . . . . Rewire . | . . . . . . Trap . | . . . . . . Miscellaneous . | . . . . . . Route ------- -11/Junkyard -10/Materials -9/Materials -9/Mines -8/Materials -7/Factory History --------- Turn | Location | Event 4 | -11/Junkyard | Discovered new exit (range 16) 72 | -11/Junkyard | Entered Materials 236 | -10/Materials | Discovered new exit (range 16) 242 | -10/Materials | Entered another Materials area 242 | -9/Materials | Evolved 2 slots: Propulsion x2 300 | -9/Materials | Discovered new exit (range 5) 325 | -9/Materials | Entered Mines 327 | -9/Mines | Met a Derelict who couldn't figure out how to use a Trap Extractor 396 | -9/Mines | Found a hidden stash of uninstalled traps 418 | -9/Mines | Discovered new exit (range 14) 427 | -9/Mines | Entered Materials 427 | -8/Materials | Evolved 2 slots: Utility x2 558 | -8/Materials | Lost 3 parts (2n1u) 630 | -8/Materials | Garrison activated, responded to threat 678 | -8/Materials | Core integrity fell below 50% 698 | -8/Materials | Lost 9 parts (1p3n2u3w) 712 | -8/Materials | Crushed by falling debris 725 | -8/Materials | Destroyed 8 combat bots 743 | -8/Materials | Lost 3 parts (2n1u) 851 | -8/Materials | Discovered new exit (range 10) 862 | -8/Materials | Core integrity fell below 20% 872 | -8/Materials | Entered Factory 872 | -7/Factory | Evolved 2 slots: Power x1, Utility x1 933 | -7/Factory | Build established: Mutant 1190 | -7/Factory | Garrison activated, responded to threat 1244 | -7/Factory | Core integrity fell below 50% 1261 | -7/Factory | Lost 7 parts (3n3u1w) 1310 | -7/Factory | Core integrity fell below 20% 1317 | -7/Factory | Destroyed by S-27 Virus with Autogun Last Messages --------------- Reading system data... 01228_ Remote Datajack severed. 01230_ Targeting Computer destroyed. 01239_ L-41 Fighter destroyed. 01239_ K-01 Serf collects debris. 01279_ Acquired Imp. Titanium Leg. 01300_ Acquired 17 matter. 01302_ Imp. Field Recycling Unit destroyed. 01302_ K-01 Serf collects debris. 01306_ U-05 Engineer builds a Wall. 01306_ K-01 Serf collects debris. 01308_ K-01 Serf destroyed. 01308_ U-05 Engineer destroyed. 01310_ Acquired Aluminum Leg. 01311_ U-05 Engineer builds a Wall. 01311_ Aluminum Leg destroyed. 01313_ Imp. Titanium Leg destroyed. 01313_ Acquired Particle Gun. 01316_ U-05 Engineer lays Concrete. 01317_ U-05 Engineer builds a Wall. Map ----- +----------------------------------------------------+ | ????????????????????????????????# ################ | | ??????????????????????? ????????# #??????????????? | | ??????????????????????? ???????# #??????????????? | | ??????????????????????? ???????# #??????????????? | | ??????????????????????? ???????# #??????????????? | | ??????????????????????? ???????# #??????????????? | | ?????????????########### ???????# #??????????????? | | ????????????? ???????# #??????????????? | | ???????????? ???????# #??????????????? | | ???????????? #??????# #??????????????? | | ??????????? ######## #??????????????? | | ??????????? #??????????????? | | ??????????? s #??????????????? | | ?????????? #??????????????? | | ?????????? #??????????????? | | ????????? #??????????????? | | ????????? ss #??????????????? | | ????????? %= % #??????????????? | | ?????????????##########!%;;;##### ########+####### | | ???????????????????### ! ;;;;## | | ???????????????????# % # | | ??????????????????## # % | | ??????????????????# # | | ??????????????????#; # | | ??????????????????#; # #####+###### | | ??????????????????#; %@ # #??????????? | | ??????????????????#; # #??????????? | | ??????????????????## # #??????????? | | ???????????????????# Y # #??????????? | | ???????????????????# "Y" ! u # #??????????? | | ???????????????????# """ ! # #??????????? | | ???????????????????# # #??????????? | | ???????????????????##########+### #??????????? | | ?????????????? #??????????? | | ?????????????? #??????????? | | ?????????????? #??????????? | | ??????????????? #??????????? | | ??????????????? #??????????? | | ???????????????? #### T######+#########??????????? | | ????????????????????##???????????????????????????? | | ?????????????????????????????????????????????????? | | ?????????????????????????????????????????????????? | | ?????????????????????????????????????????????????? | | ?????????????????????????????????????????????????? | | ?????????????????????????????????????????????????? | | ?????????????????????????????????????????????????? | | ?????????????????????????????????????????????????? | | ?????????????????????????????????????????????????? | | ?????????????????????????????????????????????????? | | ?????????????????????????????????????????????????? | +----------------------------------------------------+ Best States ------------- Heat Dissipation 41 Energy Generation 14 Energy Capacity 265 Matter Stores 600 Matter Capacity 600 Sight Range 16 Terrain Scan Density 10 Additional Mass Support 9 Resistance: KI 20 Resistance: TH 20 Resistance: EX 20 Resistance: EM 20 Resistance: I 20 Resistance: S 20 Resistance: P 20 Evasion (%) 72 Targeting Accuracy 15 Recoil Reduction 3 Offensive Hacking 10 Item Schematics ----------------- EM Pulse Gun | -9/Materials | Scanalyzed Robot Schematics ------------------ None Fabricated ------------ Nothing Alien Tech Used ----------------- None Achievements -------------- None Challenges ------------ None Game ------ Seed DroneControlWeb Manual? 0 Play Time 00:22:37 Cumulative 32.9 hours Start 2024.02.13 @ 13:23:56 End 2024.02.13 @ 13:45:22 Sessions 1 Manual Loads 0 Difficulty Adventurer Special Mode None Game No. 17 Rogue 1 Adventurer 16 Explorer 0 Win Type - Total 0 Types 0/0/0/0/0/0/0/0/0 Lore% 12 Gallery% 25 Achievement% 21 Wizard Run 0 Options --------- ASCII 0 Keyboard 0 Movement Mouse Keybinds 0 Fullscreen 1 Font 18/SmallcapsGlow Map View 76x50 Tactical HUD 1 Map Filters NONE Filters NONE Steam 1 RUN: 7957a681-0f6e-490a-aeab-7a4762f1c2c0